fUST/lending_fUST_20250208
["ID","MTS","AMOUNT","RATE_DAILY","PERIOD"]
[352193171,1738987843669,-2178.0,0.00010958,2]
[352193172,1738987843679,-502.75,0.00010958,2]
[352193173,1738987843688,-586.38,0.00010958,2]
[352193174,1738987843697,-500.0,0.00010958,2]
[352193175,1738987843711,-500.0,0.00010958,2]
[352193176,1738987843720,-500.0,0.00010958,2]
[352193178,1738987843730,-500.0,0.00010958,2]
[352193180,1738987843739,-2364.48,0.00010958,2]
[352193181,1738987843750,-500.0,0.00010958,2]
[352193182,1738987843759,-500.0,0.00010958,2]
[352193184,1738987843769,-500.0,0.00010958,2]
[352193186,1738987843779,-500.0,0.00010958,2]
[352193188,1738987843792,-500.0,0.00010958,2]
[352193189,1738987843802,-851.44,0.00010958,2]
[352193190,1738987843811,-500.60451107,0.00010958,2]
[352193191,1738987843821,-500.0,0.00010958,2]
[352193192,1738987843830,-500.0,0.00010958,2]
[352193193,1738987843840,-501.21625667,0.00010958,2]
[352193194,1738987843850,-845.02,0.00010958,2]
[352193195,1738987843860,-500.0,0.00010958,2]
[352193196,1738987843870,-500.51128462,0.00010958,2]
[352193197,1738987843880,-93.17936255,0.00010958,2]
[352193198,1738987843897,-406.82063745,0.00010958,2]
[352193199,1738987843906,-502.78673095,0.00010958,2]
[352193200,1738987843915,-2366.90196017,0.00010958,2]
[352193202,1738987846705,-980.42803983,0.00010958,2]
[352193203,1738987846715,-500.0,0.00010958,2]
[352193204,1738987846724,-500.0,0.00010958,2]
[352193205,1738987846734,-1292.58,0.00010958,2]
[352193206,1738987846745,-500.0,0.00010958,2]
[352193207,1738987846755,-500.0,0.00010958,2]
[352193208,1738987846765,-565.51,0.00010958,2]
[352193209,1738987846775,-502.8538781,0.00010958,2]
[352193210,1738987846786,-500.0,0.00010958,2]
[352193211,1738987846796,-500.0,0.00010958,2]
[352193212,1738987846806,-502.31895964,0.00010958,2]
[352193213,1738987846815,-500.0,0.00010958,2]
[352193214,1738987846825,-500.0,0.00010958,2]
[352193215,1738987846834,-500.0,0.00010958,2]
[352193216,1738987846844,-614.03,0.00010958,2]
[352193217,1738987846853,-500.0,0.00010958,2]
[352193218,1738987846863,-500.0,0.00010958,2]
[352193219,1738987846873,-500.0,0.00010958,2]
[352193220,1738987846882,-500.0,0.00010958,2]
[352193221,1738987846891,-500.72410168,0.00010958,2]
[352193222,1738987846901,-500.0,0.00010958,2]
[352193223,1738987846911,-500.0,0.00010958,2]
[352193224,1738987846920,-500.0,0.00010958,2]
[352193225,1738987846930,-522.11,0.00010958,2]
[352193226,1738987846939,-12004.01,0.00010958,2]
[352193227,1738987846948,-500.0,0.00010958,2]
[352193228,1738987846958,-949.35,0.00010958,2]
[352193229,1738987846969,-500.0,0.00010958,2]
[352193230,1738987846978,-500.0,0.00010958,2]
[352193231,1738987846987,-500.0,0.00010958,2]
[352193232,1738987846997,-500.0,0.00010958,2]
[352193233,1738987847006,-500.0,0.00010958,2]
[352193234,1738987847016,-500.0,0.00010958,2]
[352193235,1738987847026,-500.0,0.00010958,2]
[352193236,1738987847036,-500.0,0.00010958,2]
[352193237,1738987847047,-500.0,0.00010958,2]
[352193238,1738987847056,-540.43901867,0.00010958,2]
[352193239,1738987847066,-500.0,0.00010958,2]
[352193240,1738987847076,-500.0,0.00010958,2]
[352193241,1738987847086,-943.07,0.00010958,2]
[352193242,1738987847097,-500.0,0.00010958,2]
[352193243,1738987847106,-500.0,0.00010958,2]
[352193244,1738987847116,-500.87399058,0.00010958,2]
[352193245,1738987847126,-500.0,0.00010958,2]
[352193246,1738987847135,-2429.32,0.00010958,2]
[352193247,1738987847145,-500.0,0.00010958,2]
[352193248,1738987847155,-500.0,0.00010958,2]
[352193249,1738987847166,-500.0,0.00010958,2]
[352193250,1738987847175,-500.0,0.00010958,2]
[352193251,1738987847186,-500.0,0.00010958,2]
[352193252,1738987847195,-500.0,0.00010958,2]
[352193253,1738987847205,-500.0,0.00010958,2]
[352193254,1738987847215,-475.69412601,0.00010958,2]
[352193255,1738987847229,-2152.36587399,0.00010958,2]
[352193256,1738987847239,-500.0,0.00010958,2]
[352193257,1738987847248,-965.06,0.00010958,2]
[352193258,1738987847258,-534.22,0.00010958,2]
[352193259,1738987847268,-500.0,0.00010958,2]
[352193260,1738987847277,-767.69,0.00010959,2]
[352193261,1738987847287,-862.85,0.00010959,2]
[352193262,1738987847297,-719.04,0.00010959,2]
[352193263,1738987847307,-599.2,0.00010959,2]
[352193264,1738987847317,-499.33,0.00010959,2]
[352193265,1738987847327,-416.11,0.00010959,2]
[352193266,1738987847337,-346.76,0.00010959,2]
[352193267,1738987847348,-288.97,0.00010959,2]
[352193268,1738987847358,-240.8,0.00010959,2]
[352193269,1738987847367,-200.67,0.00010959,2]
[352193270,1738987847377,-167.23,0.00010959,2]
[352193271,1738987847387,-425.32259126,0.00011,2]
[352193272,1738987847398,-500.0,0.00011093,2]
[352193273,1738987847409,-500.0,0.00011094,2]
[352193274,1738987847419,-27.44135703,0.00011095,2]
[352193331,1738989032784,-1343.1772987,0.00010001,2]
[352193333,1738989032794,-377.45975923,0.00010748,2]
[352193335,1738989032803,-300.0,0.00010857,2]
[352193337,1738989032814,-183.28173978,0.00010858,2]
[352193339,1738989032823,-11502.74658696,0.00010858,2]
[352193343,1738989032846,-11805.16597503,0.00010858,2]
[352193345,1738989032858,-1969.80060118,0.00010858,2]
[352193347,1738989032868,-413.35186928,0.00010954,2]
[352193349,1738989032878,-57.20908813,0.00010954,2]
[352193351,1738989032916,-442.79091187,0.00010954,2]
[352193353,1738989032926,-500.0,0.00010954,2]
[352193355,1738989032936,-500.0,0.00010954,2]
[352193357,1738989032945,-92.20908813,0.00010954,2]
[352193358,1738989032956,-133.43869261,0.00010954,2]
[352193360,1738989032966,-444.07992548,0.00010954,2]
[352193365,1738989033018,-55.92007452,0.00010954,2]
[352193368,1738989033028,-500.0,0.00010954,2]
[352193370,1738989033037,-500.0,0.00010954,2]
[352193371,1738989033047,-500.0,0.00010954,2]
[352193374,1738989033058,-500.0,0.00010954,2]
[352193375,1738989033068,-500.0,0.00010954,2]
[352193377,1738989033078,-500.0,0.00010954,2]
[352193380,1738989033088,-453.41501532,0.00010954,2]
[352193382,1738989033098,-500.0,0.00010954,2]
[352193384,1738989033107,-500.0,0.00010954,2]
[352193386,1738989033118,-500.0,0.00010954,2]
[352193388,1738989033133,-500.0,0.00010954,2]
[352193390,1738989033142,-500.0,0.00010954,2]
[352193392,1738989033152,-500.0,0.00010954,2]
[352193394,1738989033161,-500.0,0.00010954,2]
[352193396,1738989033170,-500.0,0.00010957,2]
[352193398,1738989033180,-459.01083142,0.00010957,2]
[352193400,1738989033190,-542.35241629,0.00010958,2]
[352193402,1738989033199,-159.13074566,0.00010958,2]
[352193404,1738989033208,-588.355435,0.00010958,2]
[352193406,1738989033218,-502.67862467,0.00010958,2]
[352193408,1738989033228,-500.0,0.00010958,2]
[352193410,1738989033238,-181.31440287,0.00010958,2]
[352193412,1738989033250,-318.68559713,0.00010958,2]
[352193414,1738989033260,-647.70188224,0.00010958,2]
[352193415,1738989033271,-290.66968041,0.00010958,2]
[352193417,1738989033281,-500.13967633,0.00010958,2]
[352193418,1738989033290,-500.0,0.00010958,2]
[352193419,1738989033301,-499.92430052,0.00010958,2]
[352193420,1738989033311,-500.0,0.00010958,2]
[352193421,1738989033321,-452.43976505,0.00010958,2]
[352193422,1738989033331,-40.66409832,0.00010958,2]
[352193446,1738989038559,-309.8,0.00010954,2]
[352193449,1738989038617,-190.2,0.00010954,2]
[352193450,1738989038627,-500.0,0.00010954,2]
[352193451,1738989038637,-500.0,0.00010954,2]
[352193452,1738989038646,-500.0,0.00010954,2]
[352193453,1738989038656,-500.0,0.00010954,2]
[352193454,1738989038665,-500.0,0.00010954,2]
[352193455,1738989038675,-500.0,0.00010954,2]
[352193456,1738989038685,-500.0,0.00010954,2]
[352193457,1738989038694,-500.0,0.00010954,2]
[352193458,1738989038703,-459.33590168,0.00010958,2]
[352193459,1738989038713,-500.0,0.00010958,2]
[352193460,1738989038722,-269.30526095,0.00010958,2]
[352193461,1738989038732,-500.0,0.00010958,2]
[352193462,1738989038742,-500.0,0.00010958,2]
[352193463,1738989038751,-501.20781837,0.00010958,2]
[352193464,1738989038761,-567.78564341,0.00010958,2]
[352193465,1738989038770,-500.0,0.00010958,2]
[352193466,1738989038780,-500.0,0.00010958,2]
[352193467,1738989038789,-500.0,0.00010958,2]
[352193468,1738989038799,-500.0,0.00010958,2]
[352193469,1738989038809,-505.16621407,0.00010958,2]
[352193470,1738989038819,-504.34470114,0.00010958,2]
[352193471,1738989038828,-500.0,0.00010958,2]
[352193472,1738989038839,-279.00981622,0.00010958,2]
[352193473,1738989038851,-224.53456763,0.00010958,2]
[352193474,1738989038861,-306.56195816,0.00010958,2]
[352193475,1738989038871,-500.0,0.00010958,2]
[352193476,1738989038880,-500.0,0.00010958,2]
[352193477,1738989038890,-501.3838639,0.00010958,2]
[352193478,1738989038900,-500.0,0.00010958,2]
[352193479,1738989038909,-500.0,0.00010958,2]
[352193480,1738989038918,-500.0,0.00010958,2]
[352193481,1738989038928,-502.31564914,0.00010958,2]
[352193482,1738989038937,-502.01397189,0.00010958,2]
[352193483,1738989038947,-500.0,0.00010958,2]
[352193484,1738989038957,-502.1579732,0.00010958,2]
[352193485,1738989038967,-500.0,0.00010958,2]
[352193486,1738989038977,-500.0,0.00010958,2]
[352193487,1738989038986,-503.92415842,0.00010958,2]
[352193488,1738989038996,-500.0,0.00010958,2]
[352193489,1738989039005,-500.0,0.00010958,2]
[352193490,1738989039015,-500.0,0.00010958,2]
[352193491,1738989039024,-500.0,0.00010958,2]
[352193492,1738989039033,-500.0,0.00010958,2]
[352193493,1738989039043,-507.0558345,0.00010958,2]
[352193494,1738989039052,-511.13136179,0.00010958,2]
[352193495,1738989039062,-500.0,0.00010958,2]
[352193496,1738989039071,-500.0,0.00010958,2]
[352193497,1738989039080,-501.13368749,0.00010958,2]
[352193498,1738989039091,-500.0,0.00010958,2]
[352193499,1738989039100,-500.0,0.00010958,2]
[352193500,1738989039110,-500.0,0.00010958,2]
[352193501,1738989039120,-500.0,0.00010958,2]
[352193502,1738989039134,-500.0,0.00010958,2]
[352193503,1738989039143,-500.0,0.00010958,2]
[352193504,1738989039153,-500.0,0.00010958,2]
[352193505,1738989039163,-604.28064741,0.00010958,2]
[352193506,1738989039172,-500.0,0.00010958,2]
[352193507,1738989039182,-500.0,0.00010958,2]
[352193508,1738989039192,-500.0,0.00010958,2]
[352193509,1738989039202,-500.0,0.00010958,2]
[352193510,1738989039211,-500.0,0.00010958,2]
[352193511,1738989039221,-500.0,0.00010958,2]
[352193512,1738989039231,-500.0,0.00010958,2]
[352193513,1738989039240,-500.0,0.00010958,2]
[352193514,1738989039250,-500.96078762,0.00010958,2]
[352193515,1738989039259,-507.23882839,0.00010958,2]
[352193516,1738989039268,-500.0,0.00010958,2]
[352193517,1738989039277,-503.1296416,0.00010958,2]
[352193518,1738989039285,-500.0,0.00010958,2]
[352193519,1738989039294,-500.0,0.00010958,2]
[352193520,1738989039302,-500.0,0.00010958,2]
[352193521,1738989039310,-500.0,0.00010958,2]
[352193522,1738989039322,-500.0,0.00010958,2]
[352193523,1738989039331,-500.0,0.00010958,2]
[352193524,1738989039341,-522.07999047,0.00010958,2]
[352193525,1738989039351,-500.0,0.00010958,2]
[352193526,1738989039361,-500.0,0.00010958,2]
[352193527,1738989039370,-500.60683009,0.00010958,2]
[352193528,1738989039380,-500.0,0.00010958,2]
[352193529,1738989039389,-500.0,0.00010958,2]
[352193530,1738989039399,-500.0,0.00010958,2]
[352193531,1738989039408,-500.0,0.00010958,2]
[352193532,1738989039418,-500.0,0.00010958,2]
[352193533,1738989039427,-500.0,0.00010958,2]
[352193534,1738989039436,-500.0,0.00010958,2]
[352193535,1738989039445,-500.0,0.00010958,2]
[352193536,1738989039455,-500.0,0.00010958,2]
[352193537,1738989039463,-500.0,0.00010958,2]
[352193538,1738989039473,-500.0,0.00010958,2]
[352193539,1738989039482,-500.0,0.00010958,2]
[352193540,1738989039492,-572.39908915,0.00010958,2]
[352193541,1738989039501,-500.0,0.00010958,2]
[352193542,1738989039511,-500.0,0.00010958,2]
[352193543,1738989039520,-500.0,0.00010958,2]
[352193544,1738989039529,-500.0,0.00010958,2]
[352193545,1738989039538,-504.25473435,0.00010958,2]
[352193546,1738989039547,-500.0,0.00010958,2]
[352193547,1738989039557,-500.0,0.00010958,2]
[352193548,1738989039566,-500.0,0.00010958,2]
[352193549,1738989039575,-474.12164513,0.00010958,2]
[352193550,1738989039585,-327.3057249,0.00010958,2]
[352193551,1738989039595,-500.0,0.00010958,2]
[352193552,1738989039604,-500.0,0.00010958,2]
[352193553,1738989039615,-224.58398188,0.00010958,2]
[352193554,1738989039624,-500.0,0.00010958,2]
[352193555,1738989039634,-500.0,0.00010958,2]
[352193556,1738989039643,-500.0,0.00010958,2]
[352193557,1738989039652,-500.0,0.00010958,2]
[352193558,1738989039662,-500.0,0.00010958,2]
[352193559,1738989039672,-502.33931398,0.00010958,2]
[352193560,1738989039682,-500.0,0.00010958,2]
[352193561,1738989039691,-313.30447206,0.00010958,2]
[352193562,1738989039701,-500.0,0.00010958,2]
[352193563,1738989039711,-500.0,0.00010958,2]
[352193564,1738989039720,-500.0,0.00010958,2]
[352193565,1738989039730,-500.0,0.00010958,2]
[352193566,1738989039740,-500.0,0.00010958,2]
[352193567,1738989039749,-500.0,0.00010958,2]
[352193568,1738989039758,-500.0,0.00010958,2]
[352193569,1738989039768,-500.0,0.00010958,2]
[352193570,1738989039777,-500.0,0.00010958,2]
[352193571,1738989039787,-500.0,0.00010958,2]
[352193572,1738989039796,-612.22024344,0.00010958,2]
[352193573,1738989039807,-501.25438904,0.00010958,2]
[352193574,1738989039816,-500.0,0.00010958,2]
[352193575,1738989039826,-500.0,0.00010958,2]
[352193576,1738989039835,-501.01365762,0.00010958,2]
[352193577,1738989039844,-502.97819617,0.00010958,2]
[352193578,1738989039854,-500.0,0.00010958,2]
[352193579,1738989039864,-500.0,0.00010958,2]
[352193580,1738989039875,-500.0,0.00010958,2]
[352193581,1738989039885,-503.5967691,0.00010958,2]
[352193582,1738989039895,-500.0,0.00010958,2]
[352193583,1738989039905,-500.0,0.00010958,2]
[352193584,1738989039915,-500.0,0.00010958,2]
[352193585,1738989039925,-501.87035438,0.00010958,2]
[352193586,1738989039935,-500.0,0.00010958,2]
[352193587,1738989039945,-501.90806868,0.00010958,2]
[352193588,1738989039955,-500.0,0.00010958,2]
[352193589,1738989039965,-500.0,0.00010958,2]
[352193590,1738989039975,-552.64499874,0.00010958,2]
[352193591,1738989039984,-500.0,0.00010958,2]
[352193592,1738989039994,-500.0,0.00010958,2]
[352193593,1738989040004,-503.30559727,0.00010958,2]
[352193594,1738989040014,-500.0,0.00010958,2]
[352193595,1738989040023,-500.0,0.00010958,2]
[352193596,1738989040033,-500.0,0.00010958,2]
[352193597,1738989040043,-500.0,0.00010958,2]
[352193598,1738989040052,-500.0,0.00010958,2]
[352193599,1738989040062,-366.35790411,0.00010958,2]
[352193600,1738989040072,-304.71720517,0.00010958,2]
[352193601,1738989040082,-500.0,0.00010958,2]
[352193602,1738989040096,-500.0,0.00010958,2]
[352193603,1738989040106,-185.44803579,0.00010958,2]
[352193604,1738989040115,-500.0,0.00010958,2]
[352193605,1738989040125,-500.0,0.00010958,2]
[352193606,1738989040138,-500.0,0.00010958,2]
[352193607,1738989040148,-460.19831029,0.00010958,2]
[352193608,1738989040158,-559.68631539,0.00010958,2]
[352193609,1738989040168,-502.17102531,0.00010958,2]
[352193611,1738989040180,-364.88586514,0.00010958,2]
[352193612,1738989040190,-502.45607472,0.00010958,2]
[352193613,1738989040200,-500.87630365,0.00010958,2]
[352193614,1738989040212,-500.0,0.00010958,2]
[352193615,1738989040222,-500.0,0.00010958,2]
[352193616,1738989040231,-500.0,0.00010958,2]
[352193617,1738989040241,-351.90816954,0.00010958,2]
[352193618,1738989040251,-500.0,0.00010958,2]
[352193619,1738989040261,-500.0,0.00010958,2]
[352193620,1738989040271,-500.0,0.00010958,2]
[352193621,1738989040281,-500.0,0.00010958,2]
[352193622,1738989040290,-500.0,0.00010958,2]
[352193623,1738989040300,-500.0,0.00010958,2]
[352193624,1738989040310,-504.09717272,0.00010958,2]
[352193625,1738989040320,-500.0,0.00010958,2]
[352193626,1738989040329,-500.0,0.00010958,2]
[352193627,1738989040341,-500.0,0.00010958,2]
[352193628,1738989040351,-331.13522163,0.00010958,2]
[352193629,1738989040360,-365.39215376,0.00010958,2]
[352193630,1738989040370,-500.0,0.00010958,2]
[352193631,1738989040379,-500.0,0.00010958,2]
[352193632,1738989040389,-500.0,0.00010958,2]
[352193633,1738989040398,-500.0,0.00010958,2]
[352193634,1738989040408,-500.0,0.00010958,2]
[352193635,1738989040420,-500.0,0.00010958,2]
[352193636,1738989040430,-505.16998022,0.00010958,2]
[352193637,1738989040441,-500.0,0.00010958,2]
[352193638,1738989040451,-500.0,0.00010958,2]
[352193639,1738989040460,-500.0,0.00010958,2]
[352193640,1738989040470,-500.0,0.00010958,2]
[352193641,1738989040479,-502.10475968,0.00010958,2]
[352193642,1738989040489,-501.77729455,0.00010958,2]
[352193643,1738989040499,-511.96,0.00010958,2]
[352193644,1738989040508,-500.0,0.00010958,2]
[352193645,1738989040518,-500.0,0.00010958,2]
[352193646,1738989040528,-500.0,0.00010958,2]
[352193647,1738989040537,-500.0,0.00010958,2]
[352193648,1738989040547,-500.0,0.00010958,2]
[352193650,1738989040557,-500.0,0.00010958,2]
[352193652,1738989040566,-500.0,0.00010958,2]
[352193653,1738989040576,-500.0,0.00010958,2]
[352193654,1738989040585,-502.20629574,0.00010958,2]
[352193655,1738989040595,-500.0,0.00010958,2]
[352193656,1738989040605,-302.78814279,0.00010958,2]
[352193657,1738989040614,-500.0,0.00010958,2]
[352193659,1738989040624,-503.18202209,0.00010958,2]
[352193660,1738989040633,-500.0,0.00010958,2]
[352193661,1738989040643,-500.0,0.00010958,2]
[352193662,1738989040652,-500.0,0.00010958,2]
[352193663,1738989040661,-507.85367829,0.00010958,2]
[352193664,1738989040670,-500.0,0.00010958,2]
[352193665,1738989040679,-500.0,0.00010958,2]
[352193666,1738989040688,-500.0,0.00010958,2]
[352193667,1738989040698,-500.0,0.00010958,2]
[352193668,1738989040707,-503.63042688,0.00010958,2]
[352193669,1738989040716,-500.0,0.00010958,2]
[352193670,1738989040726,-500.0,0.00010958,2]
[352193671,1738989040736,-500.0,0.00010958,2]
[352193673,1738989040746,-500.0,0.00010958,2]
[352193674,1738989040756,-500.0,0.00010958,2]
[352193676,1738989040766,-514.72537517,0.00010958,2]
[352193677,1738989040776,-500.0,0.00010958,2]
[352193678,1738989040786,-500.0,0.00010958,2]
[352193679,1738989040795,-500.0,0.00010958,2]
[352193680,1738989040805,-853.76,0.00010958,2]
[352193681,1738989040815,-500.0,0.00010958,2]
[352193682,1738989040824,-1045.53,0.00010958,2]
[352193683,1738989040835,-500.0,0.00010958,2]
[352193684,1738989040845,-663.85,0.00010958,2]
[352193685,1738989040855,-500.0,0.00010958,2]
[352193686,1738989040865,-780.86,0.00010958,2]
[352193687,1738989040874,-500.0,0.00010958,2]
[352193688,1738989040883,-500.0,0.00010958,2]
[352193689,1738989040892,-500.0,0.00010958,2]
[352193690,1738989040902,-500.0,0.00010958,2]
[352193691,1738989040912,-500.0,0.00010958,2]
[352193692,1738989040922,-500.0,0.00010958,2]
[352193693,1738989040931,-500.0,0.00010958,2]
[352193694,1738989040940,-500.0,0.00010958,2]
[352193695,1738989040950,-500.0,0.00010958,2]
[352193696,1738989040960,-500.0,0.00010958,2]
[352193697,1738989040969,-500.0,0.00010958,2]
[352193698,1738989040979,-500.0,0.00010958,2]
[352193699,1738989040988,-500.0,0.00010958,2]
[352193700,1738989040998,-500.0,0.00010958,2]
[352193701,1738989041007,-500.0,0.00010958,2]
[352193702,1738989041017,-500.0,0.00010958,2]
[352193703,1738989041026,-500.0,0.00010958,2]
[352193704,1738989041036,-500.0,0.00010958,2]
[352193705,1738989041196,-500.0,0.00010958,2]
[352193706,1738989041208,-500.0,0.00010958,2]
[352193707,1738989041218,-500.0,0.00010958,2]
[352193708,1738989041228,-500.0,0.00010958,2]
[352193709,1738989041238,-500.0,0.00010958,2]
[352193710,1738989041248,-500.0,0.00010958,2]
[352193711,1738989041257,-500.0,0.00010958,2]
[352193712,1738989041267,-500.0,0.00010958,2]
[352193713,1738989041276,-500.0,0.00010958,2]
[352193714,1738989041286,-500.0,0.00010958,2]
[352193715,1738989041295,-500.0,0.00010958,2]
[352193716,1738989041304,-500.0,0.00010958,2]
[352193717,1738989041314,-621.57,0.00010958,2]
[352193718,1738989041323,-500.0,0.00010958,2]
[352193719,1738989041332,-500.0,0.00010958,2]
[352193720,1738989041343,-500.0,0.00010958,2]
[352193721,1738989041352,-505.27644101,0.00010958,2]
[352193722,1738989041361,-500.0,0.00010958,2]
[352193723,1738989041372,-500.0,0.00010958,2]
[352193724,1738989041382,-500.0,0.00010958,2]
[352193725,1738989041391,-500.0,0.00010958,2]
[352193726,1738989041400,-1298.17,0.00010958,2]
[352193727,1738989041409,-500.0,0.00010958,2]
[352193728,1738989041419,-500.0,0.00010958,2]
[352193729,1738989041435,-500.0,0.00010958,2]
[352193730,1738989041445,-500.0,0.00010958,2]
[352193731,1738989041455,-501.86018333,0.00010958,2]
[352193732,1738989041465,-501.88835224,0.00010958,2]
[352193733,1738989041477,-1382.2,0.00010958,2]
[352193734,1738989041489,-500.0,0.00010958,2]
[352193735,1738989041498,-500.0,0.00010958,2]
[352193736,1738989041507,-500.0,0.00010958,2]
[352193737,1738989041517,-500.0,0.00010958,2]
[352193738,1738989041527,-500.0,0.00010958,2]
[352193739,1738989041536,-466.48595993,0.00010958,2]
[352193740,1738989041545,-500.0,0.00010958,2]
[352193741,1738989041554,-500.0,0.00010958,2]
[352193742,1738989041564,-500.0,0.00010958,2]
[352193743,1738989041573,-500.0,0.00010958,2]
[352193744,1738989041583,-500.0,0.00010958,2]
[352193745,1738989041594,-500.0,0.00010958,2]
[352193746,1738989041605,-500.0,0.00010958,2]
[352193747,1738989041615,-500.0,0.00010958,2]
[352193748,1738989041624,-500.0,0.00010958,2]
[352193749,1738989041634,-578.24,0.00010958,2]
[352193750,1738989041644,-996.89,0.00010958,2]
[352193751,1738989041653,-500.0,0.00010958,2]
[352193752,1738989041663,-500.0,0.00010958,2]
[352193753,1738989041672,-500.0,0.00010958,2]
[352193754,1738989041681,-500.0,0.00010958,2]
[352193755,1738989041690,-500.0,0.00010958,2]
[352193756,1738989041699,-500.0,0.00010958,2]
[352193757,1738989041708,-500.0,0.00010958,2]
[352193758,1738989041718,-500.0,0.00010958,2]
[352193759,1738989041727,-500.0,0.00010958,2]
[352193760,1738989041737,-512.22625912,0.00010958,2]
[352193761,1738989041746,-500.0,0.00010958,2]
[352193762,1738989041755,-500.0,0.00010958,2]
[352193763,1738989041765,-500.0,0.00010958,2]
[352193764,1738989041774,-500.0,0.00010958,2]
[352193765,1738989041783,-500.0,0.00010958,2]
[352193766,1738989041793,-508.59585944,0.00010958,2]
[352193767,1738989041803,-500.0,0.00010958,2]
[352193768,1738989041812,-500.0,0.00010958,2]
[352193769,1738989041821,-500.0,0.00010958,2]
[352193770,1738989041830,-500.0,0.00010958,2]
[352193771,1738989041842,-232.05536999,0.00010958,2]
[352193772,1738989041851,-500.0,0.00010958,2]
[352193773,1738989041860,-595.47309573,0.00010958,2]
[352193774,1738989041870,-500.0,0.00010958,2]
[352193775,1738989041879,-501.50846513,0.00010958,2]
[352193776,1738989041888,-603.68,0.00010958,2]
[352193777,1738989041898,-500.0,0.00010958,2]
[352193778,1738989041908,-500.0,0.00010958,2]
[352193779,1738989041917,-1332.41,0.00010958,2]
[352193780,1738989041926,-500.0,0.00010958,2]
[352193781,1738989041936,-500.0,0.00010958,2]
[352193782,1738989041945,-500.0,0.00010958,2]
[352193783,1738989041954,-500.0,0.00010958,2]
[352193784,1738989041963,-500.0,0.00010958,2]
[352193785,1738989041973,-500.0,0.00010958,2]
[352193786,1738989041983,-500.0,0.00010958,2]
[352193787,1738989041992,-500.0,0.00010958,2]
[352193788,1738989042001,-500.0,0.00010958,2]
[352193789,1738989042011,-2718.18,0.00010958,2]
[352193790,1738989042021,-500.0,0.00010958,2]
[352193791,1738989042032,-500.0,0.00010958,2]
[352193792,1738989042041,-500.0,0.00010958,2]
[352193793,1738989042051,-277.08183382,0.00010958,2]
[352193794,1738989042060,-500.0,0.00010958,2]
[352193795,1738989042071,-500.0,0.00010958,2]
[352193796,1738989042081,-500.0,0.00010958,2]
[352193797,1738989042095,-536.46389282,0.00010958,2]
[352193798,1738989042104,-500.0,0.00010958,2]
[352193799,1738989042114,-1184.12,0.00010958,2]
[352193800,1738989042123,-500.0,0.00010958,2]
[352193801,1738989042138,-500.0,0.00010958,2]
[352193802,1738989042147,-500.0,0.00010958,2]
[352193803,1738989042157,-500.0,0.00010958,2]
[352193804,1738989042167,-500.0,0.00010958,2]
[352193805,1738989042177,-500.0,0.00010958,2]
[352193806,1738989042186,-500.0,0.00010958,2]
[352193807,1738989042196,-500.0,0.00010958,2]
[352193808,1738989042206,-1591.73,0.00010958,2]